bitfinex/quotes_ETHUSD_20251031
["timestamp","ask_amount","ask_price","bid_price","bid_amount"]
[1761894624840,0.001,3836.1,3836.0,1.82481751]
[1761894624998,0.001,3836.5,3836.4,13.03735945]
[1761894625203,0.4793,3836.5,3836.4,13.03735945]
[1761894625519,0.9528,3836.5,3836.4,13.64525945]
[1761894626118,0.001,3836.5,3836.4,13.64525945]
[1761894626499,0.9528,3836.5,3836.4,3.83220725]
[1761894626828,0.9528,3836.5,3836.4,8.60913335]
[1761894627029,0.9528,3836.5,3836.4,9.47528835]
[1761894628529,0.4745,3836.5,3836.4,9.47528835]
[1761894629110,0.941,3836.5,3836.4,9.47528835]
[1761894629511,0.941,3836.5,3836.4,8.99698835]
[1761894630611,0.4745,3836.5,3836.4,8.99698835]
[1761894630823,0.941,3836.5,3836.4,8.99698835]
[1761894633334,0.001,3836.5,3836.4,13.90351445]
[1761894633653,0.4583,3836.5,3836.4,8.99698835]
[1761894634041,0.9248,3836.5,3836.4,8.99698835]
[1761894634350,0.9248,3836.5,3836.4,8.13083335]
[1761894634647,0.9248,3836.5,3836.4,3.22430725]
[1761894636565,0.9248,3836.5,3836.4,3.35390725]
[1761894647361,0.002,3836.9,3836.8,1.82443703]
[1761894647596,0.002,3836.9,3836.8,8.7547593]
[1761894647881,0.002,3836.9,3836.8,9.79298157]
[1761894648083,0.002,3836.9,3836.8,10.25948157]
[1761894652280,0.002,3836.9,3836.8,10.66498557]
[1761894653089,0.002,3836.9,3836.8,5.15404745]
[1761894653293,0.002,3836.9,3836.8,10.66498557]
[1761894657438,0.002,3836.9,3836.8,10.79458557]
[1761894660405,0.002,3837.3,3837.2,1.82424684]
[1761894660750,0.002,3837.3,3837.2,8.75456231]
[1761894660907,0.002,3837.3,3837.2,8.73486496]
[1761894661103,0.012,3837.7,3837.6,1.8240567]
[1761894661327,0.012,3837.7,3837.6,8.75436538]
[1761894661528,0.012,3837.7,3837.6,10.11669185]
[1761894661933,0.1856,3838.4,3838.3,7.33466216]
[1761894662133,0.6533,3838.4,3838.3,7.33466216]
[1761894662462,1.1107,3838.4,3838.3,7.33466216]
[1761894663137,0.1883,3839.0,3838.6,1.82358151]
[1761894663343,0.9351,3838.7,3838.6,1.82358151]
[1761894664543,0.01,3838.7,3838.6,4.29787649]
[1761894665107,0.01,3838.7,3838.6,4.31755008]
[1761894665748,0.4777,3838.7,3838.6,4.29787649]
[1761894667035,0.01,3838.7,3838.6,4.31755008]
[1761894667506,0.01,3838.7,3838.6,4.29787649]
[1761894667790,0.01,3838.7,3838.6,4.31755008]
[1761894667944,0.9351,3838.7,3838.6,4.29787649]
[1761894668265,0.9351,3838.7,3838.6,3.22326151]
[1761894668931,0.9351,3838.7,3838.6,3.2429351]
[1761894669126,0.4777,3838.7,3838.6,3.2429351]
[1761894669333,0.01,3838.7,3838.6,3.2429351]
[1761894669831,0.011,3838.7,3838.6,3.2429351]
[1761894670044,0.011,3838.7,3838.6,4.30068744]
[1761894670464,0.011,3838.7,3838.6,4.43028744]
[1761894670767,0.001,3839.1,3839.0,1.8233915]
[1761894671068,0.001,3839.1,3839.0,8.88327643]
[1761894671367,0.4687,3839.1,3839.0,8.86360962]
[1761894671544,0.4687,3839.1,3839.0,9.93231661]
[1761894671944,0.001,3839.1,3839.0,9.93231661]
[1761894673378,0.001,3839.1,3839.0,10.20822061]
[1761894673531,0.001,3839.1,3839.0,10.85122061]
[1761894675227,0.6504,3840.0,3839.6,1.82310657]
[1761894675431,0.6504,3840.0,3839.6,9.11800949]
[1761894675761,0.6504,3840.0,3839.6,9.09835286]
[1761894675968,0.4777,3839.7,3839.6,9.09835286]
[1761894676184,0.9351,3839.7,3839.6,8.73372469]
[1761894677546,0.4777,3839.7,3839.6,8.73372469]
[1761894678658,0.01,3839.7,3839.6,8.73372469]
[1761894679475,1e-08,3839.7,3839.6,8.73372469]
[1761894679646,0.4828,3840.5,3840.4,1.82272679]
[1761894679840,0.4828,3840.5,3840.4,7.35330797]
[1761894680040,0.9401,3840.5,3840.4,7.33366491]
[1761894680241,0.9401,3840.5,3840.4,8.73334491]
[1761894680460,0.4573,3840.5,3840.4,9.78895888]
[1761894680641,0.01,3840.7,3840.6,1.82263188]
[1761894681155,0.01,3840.7,3840.6,1.84227156]
[1761894681377,0.9254,3840.7,3840.6,1.82263188]
[1761894683297,0.9254,3840.7,3840.6,1.95223188]
[1761894683615,0.9254,3840.7,3840.6,4.54459096]
[1761894683780,0.9254,3840.7,3840.6,3.35191188]
[1761894686505,0.01,3840.7,3840.6,3.35191188]
[1761894688096,1e-08,3840.7,3840.6,3.75741588]
[1761894688293,1e-08,3840.7,3840.6,4.21551588]
[1761894689207,0.00100001,3840.7,3840.6,4.21551588]
[1761894689382,0.00100001,3840.7,3840.6,5.47795937]
[1761894689583,0.1856,3841.4,3841.3,1.82229974]
[1761894689783,0.6429,3841.4,3841.3,7.46283786]
[1761894690016,1.101,3841.4,3841.3,8.86251786]
[1761894692577,0.6429,3841.4,3841.3,8.86251786]
[1761894692698,0.01,3841.7,3841.5,1.82220486]
[1761894692895,0.4681,3841.7,3841.6,0.01962332]
[1761894693119,0.4681,3841.7,3841.6,0.14922332]
[1761894693297,0.9254,3841.7,3841.6,1.97138075]
[1761894694231,0.9254,3841.7,3841.6,1.95175743]
[1761894695399,0.9254,3841.7,3841.6,3.13685234]
[1761894697616,0.4673,3841.7,3841.6,4.53653234]
[1761894698133,0.9254,3841.7,3841.6,4.53653234]
[1761894698723,0.4673,3841.7,3841.6,4.53653234]
[1761894699017,0.01,3841.7,3841.6,4.53653234]
[1761894700017,0.01,3841.7,3841.6,4.99463234]
[1761894701522,0.01,3841.7,3841.6,9.87756174]
[1761894704810,0.6437,3842.1,3842.0,1.82196772]
[1761894705007,0.6437,3842.1,3842.0,2.32633606]
[1761894705208,1.101,3842.1,3842.0,2.45593606]
[1761894705398,1.101,3842.1,3842.0,8.73854546]
[1761894707004,1.101,3842.1,3842.0,3.85561606]
[1761894707218,1.101,3842.1,3842.0,8.73854546]
[1761894709719,1.101,3842.1,3842.0,9.5206152]
[1761894710906,1.101,3842.1,3842.0,9.01624686]
[1761894712827,0.4573,3842.1,3842.0,9.01624686]
[1761894713131,0.1824,3842.4,3842.3,1.82182546]
[1761894713330,0.1824,3842.4,3842.3,6.83435486]
[1761894713518,0.6382,3842.4,3842.3,6.83435486]
[1761894713724,1.1086,3842.4,3842.3,7.01675486]
[1761894713920,1.1086,3842.4,3842.3,14.50539381]
[1761894714122,1.1086,3842.4,3842.3,9.62246441]
[1761894714323,1.1086,3842.4,3842.3,14.50539381]
[1761894716428,1.1086,3842.4,3842.3,9.62246441]
[1761894716624,1.1086,3842.4,3842.3,8.41643486]
[1761894730242,1.1086,3842.4,3842.3,1.95142546]
[1761894732242,1.1086,3842.4,3842.3,2.73358084]
[1761894733655,1.1086,3842.4,3842.3,7.61651024]
[1761894735560,1.1086,3842.4,3842.3,7.48691024]
[1761894741432,1.1086,3842.4,3842.3,2.60398084]
[1761894745647,1.1086,3842.4,3842.3,0.91175538]
[1761894745849,1.1086,3842.4,3842.3,1.95142546]
[1761894746336,1.1086,3842.4,3841.6,0.002]
[1761894746541,1.1086,3842.4,3841.6,1.82415298]
[1761894746542,0.6525,3841.7,3841.6,1.82415298]
[1761894746861,0.6525,3841.7,3841.6,1.95375298]
[1761894747050,1.1282,3841.7,3841.6,1.95375298]
[1761894747973,1.1282,3841.7,3841.6,8.23636238]
[1761894750475,1.1282,3841.7,3841.6,3.35343298]
[1761894750881,1.1282,3841.7,3841.6,4.13573317]
[1761894751057,1.1282,3841.7,3841.6,9.01866257]
[1761894758053,1.1282,3841.7,3841.6,4.13573317]
[1761894760089,0.6525,3841.7,3841.6,4.13573317]
[1761894760290,0.03253259,3842.3,3842.0,1.82196772]
[1761894760455,0.4757,3842.2,3842.0,0.1296]
[1761894760657,0.49543429,3842.1,3842.0,0.1296]
[1761894760979,0.49543429,3842.1,3841.0,1.82239805]
[1761894760980,0.6525,3841.7,3840.8,1.95212315]
[1761894761177,0.59424781,3841.6,3840.8,1.95212975]
[1761894761359,0.6525,3840.9,3840.8,1.95212975]
[1761894761896,1.1282,3840.9,3840.8,1.95212975]
[1761894762653,1.1282,3840.9,3840.8,0.1296]
[1761894763285,1.1282,3840.9,3840.8,1.95213697]
[1761894764388,1.1282,3840.9,3840.8,2.73463713]
[1761894765667,1.1282,3840.9,3840.8,2.73663713]
[1761894767714,1.1282,3840.9,3840.8,0.91410016]
[1761894768092,1.1282,3840.9,3840.8,2.73663713]
[1761894768806,1.1282,3840.9,3840.8,0.91410016]
[1761894768994,1.1282,3840.9,3840.8,0.1316]
[1761894770008,1.1282,3840.9,3840.8,1.95413697]
[1761894770920,1.1282,3840.9,3840.8,0.1316]
[1761894771082,1.1282,3840.9,3840.8,0.002]
[1761894771688,1.1282,3840.9,3840.8,1.82453697]
[1761894785625,1.1282,3840.9,3840.8,0.002]
[1761894785824,1.16074445,3840.9,3840.8,0.002]
[1761894786030,1.33293813,3840.9,3840.8,0.002]
[1761894787220,1.33293813,3840.9,3840.8,0.10635268]
[1761894788129,1.30039368,3840.9,3840.8,0.10635268]
[1761894788919,1.33293813,3840.9,3840.8,0.10635268]
[1761894789122,1.30039368,3840.9,3840.8,0.10635268]
[1761894790233,1.8624273,3840.9,3840.8,0.10635268]
[1761894794059,1.3867273,3840.9,3840.8,1.92888965]
[1761894794228,0.4766,3841.3,3840.8,1.92888965]
[1761894794430,0.59508133,3841.2,3840.8,7.42865634]
[1761894794626,0.03254191,3841.2,3841.1,1.82239462]
[1761894794865,0.50914191,3841.2,3841.1,1.82239462]
[1761894795028,0.98554191,3841.2,3841.1,1.82239462]
[1761894795433,0.953,3841.2,3841.1,1.82239462]
[1761894796267,0.03253937,3841.5,3841.0,1.82242828]
[1761894796433,0.56246362,3841.4,3841.2,1.82230353]
[1761894796633,0.50913937,3841.5,3841.3,1.8222954]
[1761894796835,0.001,3841.6,3841.4,1.8222523]
[1761894797047,0.001,3841.6,3841.5,1.82220486]
[1761894797632,0.001,3841.6,3841.5,2.29880486]
[1761894800062,0.001,3841.6,3841.5,7.79857902]
[1761894802348,0.4561,3841.6,3841.5,7.79857902]
[1761894802550,0.9339,3841.6,3841.5,7.79857902]
[1761894803369,0.9339,3841.6,3841.5,2.29880486]
[1761894805289,0.9339,3841.6,3841.5,2.30080486]
[1761894807090,0.001,3841.6,3841.5,2.30080486]
[1761894807295,0.001,3841.6,3841.5,8.35544694]
[1761894807675,0.001,3841.6,3841.5,7.93017902]
[1761894813075,0.001,3841.6,3841.5,9.32985902]
[1761894815702,0.3341,3842.7,3842.6,1.82168323]
[1761894815703,0.01,3842.7,3842.6,1.82168323]
[1761894815909,0.01,3842.7,3842.2,3.22154441]
[1761894816201,0.03253005,3842.6,3842.2,3.22154441]
[1761894816373,0.4551,3842.3,3842.2,3.22154441]
[1761894816769,0.9329,3842.3,3842.2,3.22154441]
[1761894816968,0.9329,3842.3,3842.2,3.73187446]
[1761894819506,0.4551,3842.3,3842.2,3.73187446]
[1761894821113,0.9329,3842.3,3842.2,2.33219446]
[1761894821678,0.9329,3842.3,3842.2,2.33220293]
[1761894821879,0.9329,3842.3,3842.2,0.51033005]
[1761894823496,0.9329,3842.3,3842.2,2.33220293]
[1761894824058,0.9339,3842.3,3842.2,2.33220293]
[1761894827319,0.4561,3842.3,3842.2,2.33220293]
[1761894827518,0.001,3842.3,3842.2,7.21755519]
[1761894827837,0.001,3842.3,3842.2,14.41949908]
[1761894828041,0.001,3842.3,3842.2,9.53414682]
[1761894828245,0.04252921,3842.7,3842.2,9.53414682]
[1761894828246,0.01,3842.7,3842.6,1.82168323]
[1761894828540,0.01,3842.7,3842.6,8.23631549]
[1761894828844,0.01,3842.7,3842.6,8.79792193]
[1761894829142,0.01,3842.7,3842.6,9.85988936]
[1761894829532,0.57151339,3843.7,3843.2,1.82139883]
[1761894829852,0.4778,3843.4,3843.3,6.7067037]
[1761894830230,0.937,3843.4,3843.3,7.27821709]
[1761894830627,0.937,3843.4,3843.3,0.57151339]
[1761894830955,0.937,3843.4,3843.3,2.39286483]
[1761894831743,0.937,3843.4,3843.3,0.57151339]
[1761894832546,0.937,3843.4,3843.3,2.39286483]
[1761894840256,0.937,3843.4,3843.3,7.27821709]
[1761894840430,0.4592,3843.4,3843.3,7.27821709]
[1761894840625,0.03252159,3843.6,3843.5,1.82125666]
[1761894841029,0.49172159,3843.6,3843.2,4.88535226]
[1761894841235,0.03252159,3843.6,3843.5,2.01245666]
[1761894841534,0.03252159,3843.6,3843.5,0.1912]
[1761894841720,0.89722559,3843.6,3843.1,1.82142029]
[1761894841919,0.4592,3843.2,3843.1,1.82142029]
[1761894842120,0.4592,3843.2,3843.0,0.1912]
[1761894842355,0.95242582,3843.1,3842.4,4.88535226]
[1761894842661,0.4607,3843.0,3842.7,1.82159564]
[1761894842872,0.6519,3842.8,3842.7,1.82159564]
[1761894843277,1.1126,3842.8,3842.7,2.47349564]
[1761894846884,1.1126,3842.8,3842.6,0.002]
[1761894847047,0.95242921,3842.7,3842.6,0.002]
[1761894848361,1.12303408,3842.7,3842.6,0.002]
[1761894858188,0.49342921,3842.7,3842.6,0.002]
[1761894858577,0.94862921,3842.7,3842.6,0.002]
[1761894858757,0.94862921,3842.7,3842.6,1.82368323]
[1761894859775,0.94862921,3842.7,3842.6,0.002]
[1761894861884,0.94862921,3842.7,3842.6,1.82368323]
[1761894863376,0.49342921,3842.7,3842.6,1.82368323]
[1761894863573,0.001,3842.8,3842.7,1.82163582]
[1761894863892,0.001,3842.8,3842.7,6.72659218]
[1761894864074,0.001,3842.8,3842.7,8.10666808]
[1761894864624,0.001,3842.8,3842.7,8.66774927]
[1761894871325,0.001,3842.8,3842.7,7.26806927]
[1761894871526,0.001,3842.8,3842.7,8.77186977]
[1761894874616,0.4683,3842.8,3842.7,8.77186977]
[1761894874821,0.9478,3842.8,3842.7,8.77186977]
[1761894875136,0.001,3842.8,3842.7,8.77186977]
[1761894877837,0.001,3842.8,3842.7,10.17154977]
[1761894883314,0.001,3842.8,3842.7,10.77756949]
[1761894888118,0.001,3842.8,3842.7,10.90716949]
[1761894889442,0.01,3843.7,3843.6,1.82120928]
[1761894889644,0.01,3843.7,3843.6,7.49470219]
[1761894890031,0.01,3843.7,3843.6,8.08829736]
[1761894890032,0.4848,3843.7,3843.6,8.08829736]
[1761894891454,0.9606,3843.7,3843.6,8.08829736]
[1761894891834,0.01,3843.7,3843.6,8.08829736]
[1761894892413,0.01,3843.7,3843.6,9.48797736]
[1761894893468,0.1945,3845.1,3843.6,9.48797736]
[1761894893469,0.3247,3844.5,3844.4,1.82083029]
[1761894893752,0.1951,3844.5,3844.4,7.31220227]
[1761894893914,1.1457,3844.5,3844.4,7.31220227]
[1761894894248,1.1457,3844.5,3844.4,9.31728227]
[1761894894654,1.1457,3844.5,3844.4,7.91760227]
[1761894894855,1.1457,3844.5,3844.4,8.89145241]
[1761894895020,0.1951,3844.8,3844.6,1.82073557]
[1761894895220,0.1951,3844.8,3844.6,7.31210755]
[1761894895420,0.4848,3844.7,3844.6,7.31210755]
[1761894895630,0.9606,3844.7,3844.6,7.31210755]
[1761894896663,0.9606,3844.7,3844.6,7.7682197]
[1761894898466,0.9606,3844.7,3844.6,5.49137198]
[1761894898761,0.9606,3844.7,3844.4,0.4758]
[1761894898952,0.4748,3844.5,3844.4,2.29662875]
[1761894899147,0.4748,3844.5,3844.4,0.4758]
[1761894899354,0.9506,3844.5,3844.4,0.4758]
[1761894900062,0.98311398,3844.5,3844.4,0.4758]
[1761894900266,0.98311398,3844.5,3843.8,1.82109284]
[1761894900468,0.4758,3844.4,3844.2,1.82089823]
[1761894900667,0.03251567,3844.3,3844.2,1.82089823]
[1761894900850,0.98311567,3844.3,3844.2,1.82089823]
[1761894901058,0.98311567,3844.3,3844.0,0.78186184]
[1761894901253,0.4748,3844.1,3843.7,1.82115468]
[1761894901431,0.4758,3844.2,3843.7,2.60307766]
[1761894901432,0.6699,3843.8,3843.7,2.60307766]
[1761894901627,0.6699,3843.8,3842.9,5.49137198]
[1761894901870,0.4748,3843.0,3842.9,7.312913]
[1761894902169,0.50832074,3843.7,3843.1,1.82144622]
[1761894902370,2.0157767,3844.8,3843.1,1.82144622]
[1761894902371,0.04351228,3844.7,3843.4,1.39968]
[1761894902543,0.4758,3844.4,3843.9,1.82102524]
[1761894902736,0.03251567,3844.3,3843.7,5.49137198]
[1761894902931,0.03251567,3844.3,3844.0,1.82097535]
[1761894903153,0.4758,3844.2,3844.0,1.82097535]
[1761894903474,0.50731736,3844.1,3843.8,0.4758]
[1761894903636,0.6699,3843.9,3843.8,0.4758]
[1761894903830,1.1457,3843.9,3843.8,0.4758]
[1761894904934,1.47813336,3843.9,3843.8,0.4758]
[1761894905270,1.47813336,3843.9,3843.1,1.82144355]
[1761894905481,0.4748,3843.2,3843.0,1.82149289]
[1761894905633,0.4758,3843.8,3843.1,0.78205343]
[1761894905835,0.4758,3843.8,3843.1,1.82144622]
[1761894906035,0.4748,3843.2,3843.1,1.82144622]
[1761894906278,0.9506,3843.2,3843.1,1.82144622]
[1761894906438,0.9506,3843.2,3842.9,0.78205343]
[1761894906808,0.4748,3843.0,3842.9,2.60359445]
[1761894907089,0.4748,3843.0,3842.8,0.002]
[1761894907369,0.27918392,3843.7,3842.8,1.82357845]
[1761894907370,1.1457,3842.9,3842.8,1.82357845]
[1761894907668,1.1457,3842.9,3842.8,0.002]
[1761894908866,3.66347573,3842.9,3842.8,0.002]
[1761894909374,4.06897973,3842.9,3842.8,0.002]
[1761894909575,2.24743871,3842.9,3842.8,0.002]
[1761894909776,4.06897973,3842.9,3842.8,0.002]
[1761894910083,1.84193471,3842.9,3842.8,0.002]
[1761894910282,1.17822751,3842.9,3842.8,0.002]
[1761894910448,1.39968,3843.4,3842.8,0.002]
[1761894910449,0.03252413,3843.3,3842.8,0.002]
[1761894910854,0.4748,3842.9,3842.8,0.002]
[1761894911980,0.4748,3842.9,3842.8,0.78416354]
[1761894911981,1.1457,3842.9,3842.8,0.78416354]
[1761894912994,0.03252413,3843.3,3842.8,0.78416354]
[1761894913218,0.03252497,3843.2,3842.8,0.78416354]
[1761894913377,0.4748,3842.9,3842.8,0.78416354]
[1761894914789,0.6699,3842.9,3842.8,0.78416354]
[1761894914986,1.17822751,3842.9,3842.8,0.78416354]
[1761894915171,0.03252497,3843.2,3842.8,0.78416354]
[1761894915494,0.03252497,3843.2,3843.0,1.82148685]
[1761894916170,0.03252244,3843.5,3843.1,1.82143596]
[1761894916370,0.03252244,3843.5,3843.3,1.82135003]
[1761894916576,0.1296,3843.3,3843.0,1.82145279]
[1761894916808,0.03252497,3843.2,3843.1,1.82144571]
[1761894917013,0.4657,3843.7,3843.2,1.82139524]
[1761894917316,0.03252159,3843.6,3843.2,1.82139524]
[1761894917491,0.1296,3843.2,3843.1,2.49234622]
[1761894917698,0.873104,3843.2,3843.1,0.6709]
[1761894917864,0.873104,3843.2,3842.8,0.002]
[1761894917865,1.23967337,3843.2,3842.8,0.002]
[1761894918101,0.4657,3843.1,3842.8,0.002]
[1761894918298,0.03252667,3843.0,3842.8,0.002]
[1761894918699,0.001,3843.7,3842.8,0.002]
[1761894918700,0.4657,3843.4,3842.8,1.82358375]
[1761894919014,0.03252413,3843.3,3843.0,1.82145018]
[1761894919233,0.03252159,3843.6,3843.0,1.82145018]
[1761894919431,0.23044056,3843.5,3843.1,1.82142948]
[1761894919747,0.03252328,3843.4,3843.1,1.82142948]
[1761894920547,0.03252413,3843.3,3843.1,1.82140584]
[1761894920841,0.03352074,3843.7,3843.2,1.82139883]
[1761894921201,0.4894,3843.6,3843.1,0.4894]
[1761894921413,0.03252244,3843.5,3843.1,2.31084331]
[1761894921939,0.52192244,3843.5,3843.1,2.31084331]
[1761894922108,0.03252244,3843.5,3843.2,1.82139367]
[1761894922301,0.03252328,3843.4,3843.2,1.82139367]
[1761894922503,0.001,3843.7,3843.1,0.4894]
[1761894922504,0.03352074,3843.7,3843.1,0.4894]
[1761894922712,0.03352074,3843.7,3843.4,1.8212636]
[1761894923327,0.4788,3843.5,3843.1,2.31084084]
[1761894923511,0.03252328,3843.4,3842.8,1.82357227]
[1761894923699,0.03252328,3843.4,3843.1,2.30024505]
[1761894923904,0.03252328,3843.4,3843.2,1.82139092]
[1761894924138,0.4788,3843.2,3843.1,0.4788]
[1761894924350,0.51132497,3843.2,3843.1,0.4788]
[1761894924646,0.4894,3843.4,3843.1,0.4788]
[1761894924832,0.4894,3843.4,3842.8,0.002]
[1761894924833,0.4788,3843.2,3842.8,0.002]
[1761894925037,0.4788,3842.9,3842.8,0.002]
[1761894925338,1.1588,3842.9,3842.8,0.002]
[1761894925922,1.46007684,3842.9,3842.8,0.002]
[1761894927518,1.19132751,3842.9,3842.8,0.002]
[1761894929038,1.1588,3842.9,3842.8,0.002]
[1761894931021,1.59683151,3842.9,3842.8,0.002]
[1761894931766,2.15788501,3842.9,3842.8,0.002]
[1761894932164,1.59683151,3842.9,3842.8,0.002]
[1761894932337,1.75651466,3842.9,3842.8,0.002]
[1761894932663,2.31756816,3842.9,3842.8,0.002]
[1761894937938,4.13910918,3842.9,3842.8,0.002]
[1761894939038,2.31756816,3842.9,3842.8,0.002]
[1761894940442,4.13910918,3842.9,3842.8,0.002]
[1761894940646,2.31756816,3842.9,3842.8,0.002]
[1761894943587,1.75238101,3842.9,3842.8,0.002]
[1761894943801,1.19132751,3842.9,3842.8,0.002]
[1761894943959,1.1588,3842.9,3842.8,0.002]
[1761894944423,1.19132751,3842.9,3842.8,0.002]
[1761894944599,1.75238101,3842.9,3842.8,0.002]
[1761894944909,1.19132751,3842.9,3842.8,0.002]
[1761894945275,1.75238101,3842.9,3842.8,0.002]
[1761894945481,1.19132751,3842.9,3842.8,0.002]
[1761894945703,0.70192751,3842.9,3842.8,0.002]
[1761894946200,3.74916013,3842.9,3842.8,0.002]
[1761894947130,1.92761911,3842.9,3842.8,0.002]
[1761894948587,4.15466413,3842.9,3842.8,0.002]
[1761894949017,2.3005956,3842.9,3842.8,0.002]
[1761894949230,2.33312311,3842.9,3842.8,0.002]
[1761894949722,4.15466413,3842.9,3842.8,0.002]
[1761894950287,2.33312311,3842.9,3842.8,0.002]
[1761894950487,1.24761911,3842.9,3842.8,0.002]
[1761894950724,1.07238101,3842.9,3842.8,0.002]
[1761894950924,1.55348101,3842.9,3842.8,0.002]
[1761894951220,0.59358101,3842.9,3842.8,0.002]
[1761894951531,1.0344535,3842.9,3842.8,0.002]
[1761894951822,1.06698101,3842.9,3842.8,0.002]
[1761894953328,1.54808101,3842.9,3842.8,0.002]
[1761894953525,1.88503394,3842.9,3842.8,0.002]
[1761894955988,1.32398044,3842.9,3842.8,0.002]
[1761894956188,0.93187165,3842.9,3842.8,0.002]
[1761894956421,1.06831872,3842.9,3842.8,0.002]
[1761894956588,0.59491872,3842.9,3842.8,0.002]
[1761894956789,0.03252413,3843.3,3842.8,0.002]
[1761894956990,0.56237073,3843.2,3842.8,0.002]
[1761894957190,0.03252582,3843.1,3842.8,0.002]
[1761894957425,0.03252159,3843.6,3842.8,2.26741877]
[1761894957621,0.56225459,3843.5,3842.8,0.44583703]
[1761894957922,0.59477787,3843.4,3842.8,0.44583703]
[1761894958127,0.56225459,3843.3,3842.9,1.82149914]
[1761894958325,0.59477956,3843.2,3842.9,1.82154102]
[1761894958537,0.03252497,3843.2,3842.9,1.82154102]
[1761894958696,0.03252159,3843.6,3842.9,1.82154102]
[1761894958891,0.56215297,3843.5,3842.9,1.82154102]
[1761894959096,0.59467625,3843.4,3842.9,1.82154102]
[1761894959456,0.56215297,3843.3,3843.0,1.82149362]
[1761894959729,0.1296,3843.0,3842.9,0.89752057]
[1761894960414,0.1296,3843.0,3842.9,2.71906159]
[1761894965251,0.03252328,3843.4,3843.2,1.82137871]
[1761894965453,0.16212413,3843.3,3842.9,4.88421043]
[1761894965754,0.16212413,3843.3,3843.1,1.82140136]
[1761894966320,0.9545,3843.2,3842.8,0.002]
[1761894966541,0.1296,3843.0,3842.8,0.002]
[1761894966737,0.69122751,3842.9,3842.8,0.002]
[1761894967247,1.17232751,3842.9,3842.8,0.002]
[1761894967451,1.54081125,3842.9,3842.8,0.002]
[1761894968265,9.21347196,3842.9,3842.8,0.002]
[1761894968564,9.21347196,3842.9,3842.6,0.002]
[1761894968565,1.82163582,3842.7,3842.6,0.002]
[1761894968861,5.22453787,3842.7,3842.6,0.002]
[1761894969079,5.22453787,3842.7,3842.1,0.01]
[1761894969080,0.4734,3842.4,3842.1,0.01]
[1761894969222,2.29536772,3842.0,3841.1,0.012]
[1761894969560,0.6587,3841.7,3841.1,0.012]
[1761894969932,1.1398,3841.7,3841.1,0.012]
[1761894970131,1.17233767,3841.7,3841.1,0.012]
[1761894970330,1.52791198,3841.7,3841.1,0.012]
[1761894970846,1.52791198,3841.7,3841.1,1.83439261]
[1761894971659,1.17233767,3841.7,3841.1,0.012]
[1761894972082,3.39995167,3841.7,3841.1,0.012]
[1761894972370,3.96132673,3841.7,3841.1,0.012]
[1761894973438,5.32846906,3841.7,3841.1,0.012]
[1761894973654,17.70017033,3841.7,3841.1,0.012]
[1761894973840,24.73450928,3841.7,3841.1,0.012]
[1761894974045,25.03759443,3841.6,3841.1,0.012]
[1761894974336,15.71336492,3841.6,3841.1,0.012]
[1761894974544,29.86429092,3841.6,3841.1,0.012]
[1761894974872,18.08615092,3841.6,3841.1,0.012]
[1761894975170,18.45463466,3841.6,3841.1,0.012]
[1761894975332,19.38703629,3841.6,3841.1,0.012]
[1761894975535,19.38703629,3841.6,3841.2,0.002]
[1761894975536,40.52551066,3841.6,3841.2,0.002]
[1761894975865,45.40972109,3841.6,3841.2,0.002]
[1761894976033,38.64240909,3841.6,3841.2,0.002]
[1761894976383,0.405504,3841.1,3840.8,0.002]
[1761894976585,27.49889095,3840.9,3840.8,0.002]
[1761894976875,17.64160501,3840.9,3840.8,0.002]
[1761894977079,18.13770501,3840.9,3840.8,0.002]
[1761894977255,15.96582701,3840.9,3840.8,0.002]
[1761894977564,10.22805901,3840.9,3840.8,0.002]
[1761894977749,28.74740297,3840.9,3840.8,0.002]
[1761894977951,17.43703597,3840.9,3840.8,0.002]
[1761894978741,29.31589768,3840.9,3840.8,0.002]
[1761894979636,30.24626268,3840.9,3840.8,0.002]
[1761894980064,30.02569668,3840.9,3840.8,0.002]
[1761894980440,19.86519368,3840.9,3840.8,0.002]
[1761894980643,26.27929668,3840.9,3840.8,0.002]
[1761894981052,26.05872668,3840.9,3840.8,0.002]
[1761894981461,10.97153997,3840.9,3840.8,0.002]
[1761894982365,6.08732954,3840.9,3840.8,0.002]
[1761894982672,10.41016491,3840.9,3840.8,0.002]
[1761894986273,3.20736496,3840.9,3840.8,0.002]
[1761894986477,3.70370941,3840.9,3840.8,0.002]
[1761894986773,2.55472445,3840.9,3840.8,0.002]
[1761894987250,0.50594445,3840.9,3840.8,0.002]
[1761894987445,0.43804845,3840.9,3840.8,0.002]
[1761894987645,0.405504,3840.9,3840.8,0.002]
[1761894988043,0.856704,3840.9,3840.8,0.002]
[1761894988372,0.4512,3840.9,3840.8,0.002]
[1761894991146,0.405504,3841.0,3840.8,0.007]
[1761894991370,0.03254445,3840.9,3840.8,0.002]
[1761894992075,0.03254445,3840.9,3840.8,0.007]
[1761894992273,0.0325436,3841.0,3840.8,0.007]
[1761894993611,0.0325436,3841.0,3840.9,0.005]
[1761894993898,0.0325436,3841.0,3840.9,0.01]
[1761894994282,0.001,3841.1,3840.9,1.83244933]
[1761894994283,0.03354276,3841.1,3840.9,1.83244933]
[1761894994593,0.001,3841.1,3841.0,0.01]
[1761894994764,0.03354276,3841.1,3841.0,1.83244207]
[1761894994969,0.001,3841.1,3841.0,1.83244207]
[1761894996191,0.001,3841.1,3841.0,2.68655832]
[1761894996699,0.001,3841.1,3841.0,0.005]
[1761894996871,0.1296,3841.0,3840.8,0.002]
[1761894997067,0.03254445,3840.9,3840.8,0.002]
[1761894997574,0.001,3841.1,3840.8,0.007]
[1761894997894,0.001,3841.1,3841.0,0.005]
[1761894998095,0.03354276,3841.1,3841.0,0.005]
[1761894999083,0.001,3841.1,3841.0,0.005]
[1761894999380,0.1296,3841.0,3840.8,1.82451336]
[1761894999580,0.03354276,3841.1,3841.0,1.82744207]